bitfinex-derivatives/quotes_SOLF0:USTF0_20250509
["timestamp","ask_amount","ask_price","bid_price","bid_amount"]
[1746751806277,6.1452,162.74,162.67,39.64516376]
[1746751806480,29.46,162.75,162.67,39.64516376]
[1746751806669,539.28706376,162.82,162.7,6.12336376]
[1746751806869,6.1439,162.77,162.71,29.44]
[1746751807172,29.46,162.78,162.71,29.44]
[1746751807574,6.1443,162.76,162.71,29.44]
[1746751807769,29.46,162.78,162.71,29.44]
[1746751809077,29.46,162.78,162.72,6.1456]
[1746751809277,29.46,162.78,162.71,29.44]
[1746751809576,6.1441,162.77,162.74,6.1447]
[1746751810471,6.1434,162.79,162.75,6.1445]
[1746751810679,29.42,162.8,162.75,6.1445]
[1746751811171,29.42,162.8,162.73,6.12336376]
[1746751812379,6.1442,162.77,162.74,6.1448]
[1746751812575,29.42,162.8,162.72,2.0868]
[1746751812771,29.42,162.79,162.68,29.42]
[1746751813173,29.42,162.79,162.7,6.1463]
[1746751813980,6.1456,162.73,162.7,6.1463]
[1746751814176,6.1456,162.73,162.68,29.42]
[1746751814177,29.42,162.75,162.69,6.1468]
[1746751814377,6.1456,162.73,162.69,6.1468]
[1746751815281,6.1456,162.73,162.7,6.1464]
[1746751815484,6.1459,162.72,162.67,10.20516376]
[1746751815685,6.1459,162.72,162.67,33.5018]
[1746751815984,6.1455,162.73,162.67,33.5018]
[1746751816782,6.1455,162.73,162.69,6.1467]
[1746751816983,6.1455,162.73,162.67,33.5018]
[1746751817184,6.1455,162.73,162.7,6.1463]
[1746751817383,6.1455,162.73,162.67,33.5018]
[1746751817784,6.1458,162.72,162.69,6.1468]
[1746751819288,6.1456,162.73,162.69,6.1468]
[1746751819684,6.1456,162.73,162.7,6.1465]
[1746751820587,6.1456,162.73,162.69,6.1467]
[1746751821080,6.1458,162.72,162.69,6.1467]
[1746751822189,6.1456,162.73,162.7,6.1465]
[1746751824793,6.1456,162.73,162.71,6.1462]
[1746751824981,6.1452,162.74,162.71,6.1462]
[1746751826090,6.1454,162.73,162.7,6.1464]
[1746751826287,29.42,162.75,162.67,33.5018]
[1746751827291,29.42,162.75,162.69,6.1468]
[1746751827487,29.42,162.75,162.65,2.0115]
[1746751827788,58.82,162.75,162.65,29.4]
[1746751827989,6.0292,162.74,162.66,6.1478]
[1746751828189,6.0292,162.74,162.65,29.4]
[1746751828385,6.146,162.72,162.68,6.1471]
[1746751828586,6.0292,162.74,162.65,29.4]
[1746751828986,6.0292,162.74,162.66,6.1478]
[1746751829185,6.0292,162.74,162.65,29.4]
[1746751829593,6.1466,162.7,162.66,6.1479]
[1746751830594,6.1469,162.69,162.65,35.5484]
[1746751830796,29.42,162.71,162.64,1.0]
[1746751831292,6.1476,162.68,162.64,7.1486]
[1746751831692,29.42,162.71,162.64,1.0]
[1746751832296,6.1468,162.7,162.65,6.1481]
[1746751832495,29.42,162.71,162.64,1.0]
[1746751832997,6.1466,162.7,162.64,1.0]
[1746751833196,6.1466,162.7,162.65,29.4]
[1746751833594,6.1466,162.7,162.66,6.148]
[1746751833893,6.147,162.69,162.65,29.4]
[1746751834492,6.147,162.69,162.65,35.5481]
[1746751834693,29.42,162.71,162.64,1.0]
[1746751834895,29.42,162.71,162.64,30.38]
[1746751835098,6.1476,162.68,162.64,36.5287]
[1746751835294,29.42,162.71,162.64,30.38]
[1746751835898,6.1472,162.69,162.65,6.1483]
[1746751836298,29.42,162.71,162.64,30.38]
[1746751836501,29.42,162.71,162.64,1.0]
[1746751837000,58.8,162.71,162.64,1.0]
[1746751837199,6.1484,162.66,162.64,1.0]
[1746751837401,29.42,162.67,162.64,1.0]
[1746751838098,6.1484,162.65,162.64,1.0]
[1746751842000,6.1481,162.66,162.64,1.0]
[1746751842202,29.38,162.69,162.64,30.38]
[1746751842500,29.38,162.71,162.64,36.50336376]
[1746751842700,29.38,162.71,162.65,6.1483]
[1746751843101,6.1471,162.69,162.66,6.148]
[1746751843301,6.1471,162.69,162.64,36.50336376]
[1746751843604,6.1471,162.69,162.65,6.1483]
[1746751843901,6.1473,162.68,162.64,36.50336376]
[1746751844201,6.1473,162.68,162.64,42.65186376]
[1746751845201,29.38,162.71,162.64,42.65186376]
[1746751845202,6.1478,162.67,162.64,42.65186376]
[1746751845401,29.38,162.71,162.64,30.38]
[1746751845899,6.1479,162.67,162.64,30.38]
[1746751846599,6.1479,162.67,162.64,36.5288]
[1746751848203,6.1479,162.67,162.64,30.38]
[1746751849205,6.1479,162.67,162.64,36.5288]
[1746751849404,6.1479,162.67,162.64,30.38]
[1746751850003,29.38,162.71,162.64,30.38]
[1746751850804,29.38,162.71,162.64,36.5287]
[1746751851001,29.38,162.71,162.64,30.38]
[1746751851300,29.38,162.71,162.64,1.0]
[1746751851504,29.36,162.7,162.64,1.0]
[1746751851902,6.1484,162.65,162.64,1.0]
[1746751852098,29.38,162.66,162.64,1.0]
[1746751852701,35.5282,162.66,162.64,1.0]
[1746751853204,29.38,162.66,162.64,1.0]
[1746751854007,29.38,162.66,162.64,7.1488]
[1746751854394,29.38,162.66,162.64,1.0]
[1746751856608,35.5282,162.66,162.64,1.0]
[1746751859009,29.38,162.66,162.64,1.0]
[1746751859209,29.38,162.66,162.64,7.1488]
[1746751859910,35.5281,162.66,162.64,1.0]
[1746751860814,35.5281,162.66,162.64,2.0]
[1746751861308,29.38,162.69,162.64,2.0]
[1746751861513,29.38,162.7,162.64,2.0]
[1746751862113,29.38,162.7,162.66,6.148]
[1746751862617,29.38,162.7,162.65,29.34]
[1746751862810,35.5268,162.7,162.67,6.1476]
[1746751863307,29.38,162.7,162.67,6.1476]
[1746751863514,369.2852,162.81,162.66,6.12336376]
[1746751863714,29.38,162.77,162.66,12.11106376]
[1746751863916,29.38,162.77,162.69,6.12336376]
[1746751864119,29.38,162.77,162.7,29.34]
[1746751864417,6.1449,162.75,162.71,6.1461]
[1746751864717,29.38,162.77,162.7,29.34]
[1746751865015,6.1447,162.75,162.71,6.1459]
[1746751865215,29.38,162.77,162.7,29.34]
[1746751865816,6.1446,162.76,162.72,6.1457]
[1746751866620,6.1446,162.76,162.7,29.34]
[1746751866621,6.1446,162.76,162.73,6.1454]
[1746751871720,29.32,162.8,162.74,29.32]
[1746751872122,35.463,162.8,162.77,6.1438]
[1746751873024,29.32,162.8,162.77,6.1438]
[1746751873319,29.32,162.8,162.78,6.1435]
[1746751873518,29.32,162.8,162.74,29.32]
[1746751873724,35.4628,162.8,162.74,29.32]
[1746751874124,35.4628,162.8,162.77,6.1437]
[1746751874821,29.32,162.8,162.78,6.1435]
[1746751875119,29.32,162.8,162.74,29.32]
[1746751875426,29.32,162.8,162.77,6.1436]
[1746751876023,35.4628,162.8,162.77,6.1436]
[1746751876225,29.32,162.84,162.8,6.1427]
[1746751877421,29.32,162.84,162.81,6.1423]
[1746751877621,6.141,162.85,162.81,6.1423]
[1746751877825,29.32,162.87,162.81,6.1423]
[1746751877826,29.32,162.87,162.81,6.12336376]
[1746751878021,29.32,162.87,162.82,29.3]
[1746751878227,35.4601,162.87,162.83,6.1413]
[1746751878422,1.9781,162.89,162.82,29.3]
[1746751878726,31.2781,162.89,162.82,29.3]
[1746751879526,6.1401,162.87,162.83,6.1413]
[1746751880422,31.2781,162.89,162.82,29.3]
[1746751881129,6.1401,162.87,162.83,6.1414]
[1746751881428,31.2781,162.89,162.82,29.3]
[1746751881926,1.9781,162.89,162.82,29.3]
[1746751882123,29.3,162.88,162.82,29.3]
[1746751882830,6.1405,162.86,162.82,35.4419]
[1746751883127,29.3,162.88,162.82,29.3]
[1746751883518,29.3,162.88,162.81,6.1421]
[1746751883725,6.1412,162.85,162.8,6.1426]
[1746751883925,29.3,162.88,162.8,6.1426]
[1746751884425,6.1417,162.83,162.79,35.4231]
[1746751884729,6.1417,162.83,162.79,6.1431]
[1746751886726,6.142,162.82,162.78,6.1434]
[1746751886931,29.3,162.84,162.77,29.28]
[1746751887734,6.142,162.82,162.74,2.0866]
[1746751887936,6.142,162.82,162.75,35.40336376]
[1746751888132,29.3,162.84,162.75,35.40336376]
[1746751888429,29.3,162.84,162.78,6.12336376]
[1746751888734,29.3,162.84,162.79,29.28]
[1746751889432,6.1406,162.86,162.82,6.1418]
[1746751889734,29.3,162.87,162.79,29.28]
[1746751889934,29.3,162.87,162.79,33.3211]
[1746751890135,35.4402,162.87,162.79,33.3211]
[1746751890526,29.3,162.87,162.81,6.12336376]
[1746751890833,35.4391,162.9,162.86,6.1405]
[1746751891629,6.1395,162.89,162.86,6.1405]
[1746751891827,29.3,162.9,162.86,6.1405]
[1746751892029,29.3,162.91,162.83,35.40336376]
[1746751893136,29.3,162.91,162.88,6.1394]
[1746751893336,29.3,162.91,162.83,35.40336376]
[1746751893529,35.4389,162.91,162.83,35.40336376]
[1746751894138,6.1394,162.89,162.83,35.40336376]
[1746751894635,29.3,162.91,162.83,35.40336376]
[1746751894833,29.3,162.91,162.83,6.1415]
[1746751895035,58.58,162.91,162.83,6.1415]
[1746751895837,6.1404,162.87,162.83,6.1415]
[1746751896937,6.1404,162.87,162.81,29.26]
[1746751896938,6.1399,162.88,162.84,6.1409]
[1746751897139,58.58,162.91,162.81,29.26]
[1746751897732,6.1394,162.89,162.85,6.1406]
[1746751898041,530.98,162.94,162.83,6.12336376]
[1746751898239,6.1389,162.91,162.86,6.1405]
[1746751898439,29.3,162.93,162.86,6.1405]
[1746751898641,29.3,162.93,162.85,29.26]
[1746751898843,6.1388,162.91,162.87,6.1401]
[1746751899343,29.3,162.93,162.8,8.06956376]
[1746751899637,29.3,162.93,162.81,58.52]
[1746751899838,29.3,162.93,162.83,6.12336376]
[1746751900038,6.139,162.91,162.86,6.1405]
[1746751900445,6.139,162.91,162.85,29.26]
[1746751900739,6.139,162.91,162.87,6.14]
[1746751901341,6.1391,162.9,162.87,6.14]
[1746751901940,6.1387,162.91,162.87,6.14]
[1746751902143,29.3,162.93,162.85,29.26]
[1746751902642,35.438,162.93,162.85,29.26]
[1746751902843,29.3,162.93,162.86,6.12336376]
[1746751903543,29.3,162.93,162.86,8.03346376]
[1746751903843,35.4379,162.93,162.86,8.03346376]
[1746751904241,29.3,162.93,162.86,8.03346376]
[1746751904843,29.3,162.93,162.89,6.1391]
[1746751905144,35.4382,162.93,162.89,6.1391]
[1746751905841,6.1384,162.92,162.89,6.1391]
[1746751906042,29.3,162.93,162.89,6.1391]
[1746751906247,29.3,162.93,162.9,6.1389]
[1746751906544,29.3,162.93,162.86,8.03346376]
[1746751906743,35.4379,162.93,162.89,6.1391]
[1746751907045,29.3,162.93,162.86,8.03346376]
[1746751907249,29.3,162.93,162.87,29.34]
[1746751907437,6.1389,162.91,162.87,35.48]
[1746751907947,6.1389,162.91,162.88,6.1397]
[1746751908246,6.1384,162.92,162.88,6.1397]
[1746751908436,29.3,162.93,162.87,29.34]
[1746751908847,6.1383,162.92,162.87,29.34]
[1746751909150,6.1383,162.92,162.88,6.1395]
[1746751909641,35.438,162.93,162.89,6.1393]
[1746751909847,29.3,162.93,162.87,29.34]
[1746751910249,29.3,162.93,162.89,6.1391]
[1746751910743,29.3,162.93,162.87,29.34]
[1746751911243,6.1383,162.92,162.89,6.1393]
[1746751911551,29.3,162.93,162.87,29.34]
[1746751911751,29.24,162.96,162.87,29.34]
[1746751911938,6.1376,162.94,162.87,29.34]
[1746751912142,29.24,162.96,162.87,29.34]
[1746751912549,6.1371,162.95,162.91,6.1385]
[1746751912942,6.1371,162.95,162.87,29.34]
[1746751913247,6.1371,162.95,162.92,6.1382]
[1746751914546,6.1371,162.95,162.91,6.1385]
[1746751916248,20.5706,162.92,162.91,6.1385]
[1746751918950,31.2907,162.99,162.95,6.1369]
[1746751918951,29.24,162.99,162.95,6.1369]
[1746751919252,29.24,162.99,162.91,29.34]
[1746751919446,29.24,162.99,162.92,6.12336376]
[1746751919646,29.24,162.99,162.92,10.28926376]
[1746751920146,363.1344,163.03,162.95,6.12336376]
[1746751920345,33.1427,163.08,162.97,6.12336376]
[1746751920544,33.1427,163.08,162.97,35.36336376]
[1746751921246,6.1339,163.04,162.97,35.36336376]
[1746751921647,6.1339,163.04,163.0,6.135]
[1746751922152,6.1342,163.03,162.97,29.24]
[1746751922356,33.1427,163.08,162.97,29.24]
[1746751922653,6.1338,163.04,162.97,29.24]
[1746751923050,33.1427,163.08,163.0,6.1349]
[1746751923246,33.1427,163.08,162.98,31.18]
[1746751923445,29.24,163.08,162.99,6.12336376]
[1746751923651,29.24,163.08,163.0,1.0]
[1746751923947,35.3725,163.08,163.0,1.0]
[1746751924151,29.24,163.08,163.0,1.0]
[1746751924351,31.16,163.11,163.02,6.12336376]
[1746751924552,31.16,163.11,163.03,31.36]
[1746751925051,6.1318,163.1,163.03,31.36]
[1746751925249,31.16,163.11,163.03,37.4938]
[1746751925648,31.16,163.11,163.04,6.1334]
[1746751925853,31.16,163.11,163.03,31.36]
[1746751926247,31.16,163.15,163.03,31.36]
[1746751926757,40.90918714,163.15,163.0,1.0]
[1746751926950,40.90918714,163.15,163.03,38.2141]
[1746751927151,31.16,163.15,163.03,32.08]
[1746751927347,357.0,163.17,163.07,6.1326]
[1746751927649,6.1315,163.11,163.03,41.82918714]
[1746751927953,32.6,163.14,163.03,32.08]
[1746751928157,6.1315,163.1,163.04,33.0]
[1746751928357,32.6,163.14,163.04,33.0]
[1746751928558,32.6,163.14,163.05,6.133]
[1746751928750,32.6,163.14,163.0,1.0]
[1746751928946,32.6,163.14,163.01,65.62]
[1746751929154,6.1318,163.1,163.01,65.62]
[1746751929455,32.6,163.14,163.0,1.0]
[1746751929657,32.6,163.14,163.02,6.1342]
[1746751929960,32.6,163.14,163.0,1.0]
[1746751930156,9.74918714,163.11,163.01,33.02]
[1746751930357,1.9817,163.1,163.0,1.0]
[1746751930553,32.58,163.09,163.0,1.0]
[1746751932860,6.1344,163.03,163.0,1.0]
[1746751933656,6.1346,163.02,163.0,1.0]
[1746751933856,32.58,163.04,163.0,1.0]
[1746751936461,38.7137,163.04,163.0,1.0]
[1746751936664,32.58,163.04,163.0,1.0]
[1746751937562,6.1348,163.02,163.0,1.0]
[1746751937764,32.58,163.04,163.0,1.0]
[1746751938357,6.1348,163.01,163.0,1.0]
[1746751938557,2.0833,163.03,163.0,1.0]
[1746751938862,33.88,163.05,163.0,1.0]
[1746751939257,6.1338,163.04,163.0,7.1352]
[1746751939453,33.88,163.05,163.0,7.1352]
[1746751939962,40.0136,163.05,163.0,7.1352]
[1746751940262,33.88,163.05,163.0,1.0]
[1746751941065,6.134,163.04,163.0,1.0]
[1746751941258,33.88,163.05,163.0,1.0]
[1746751941965,33.88,163.05,163.0,7.135]
[1746751942763,40.0136,163.05,163.0,7.135]
[1746751943162,33.88,163.05,163.0,7.135]
[1746751943361,33.88,163.05,163.0,1.0]
[1746751943863,2.0833,163.09,163.0,1.0]
[1746751944171,33.88,163.15,163.01,34.24]
[1746751944372,33.88,163.15,163.03,9.74918714]
[1746751944565,6.1304,163.13,163.03,9.74918714]
[1746751944960,6.1308,163.12,163.07,6.1325]
[1746751945168,33.88,163.15,163.06,34.36]
[1746751945461,33.88,163.15,163.05,6.1333]
[1746751945666,33.88,163.15,163.03,34.38]
[1746751945968,1.09916352,163.14,163.03,34.38]
[1746751946269,33.88,163.15,163.05,6.133]
[1746751946967,6.1317,163.1,163.06,6.1329]
[1746751947164,40.0117,163.1,163.06,6.1329]
[1746751947567,40.0117,163.1,163.02,36.4043]
[1746751947568,40.0117,163.1,163.05,6.1333]
[1746751947763,6.1319,163.09,163.05,6.1333]
[1746751948271,40.0116,163.1,163.05,6.1333]
[1746751948670,33.88,163.1,163.04,6.1336]
[1746751948872,6.1321,163.09,163.02,36.4043]
[1746751949061,33.88,163.1,163.02,36.4043]
[1746751949267,33.88,163.1,163.05,6.1331]
[1746751949476,40.0117,163.1,163.05,6.1331]
[1746751949973,33.88,163.1,163.02,36.4043]
[1746751950376,40.0115,163.1,163.05,6.133]
[1746751950566,40.0115,163.1,163.02,36.4043]
[1746751950763,33.88,163.1,163.02,34.36]
[1746751950967,33.88,163.1,163.0,1.0]
[1746751951169,6.0774,163.09,163.0,1.0]
[1746751951569,6.1332,163.06,163.0,1.0]
[1746751951975,6.1332,163.06,163.01,6.1347]
[1746751953674,6.1332,163.06,163.02,6.1345]
[1746751956177,6.133,163.06,163.02,6.1344]
[1746751956477,6.0774,163.09,163.0,1.0]
[1746751957079,6.1325,163.08,163.03,6.1338]
[1746751957279,6.0774,163.09,163.03,6.1338]
[1746751958479,4.0634,163.09,163.0,1.0]
[1746751958681,33.88,163.1,163.01,4.0945]
[1746751958881,33.88,163.1,163.02,33.88]
[1746751959079,33.88,163.14,163.03,9.74918714]
[1746751959282,33.88,163.14,163.04,34.46]
[1746751959488,40.01,163.14,163.04,36.4602]
[1746751959687,33.88,163.14,163.04,36.4602]
[1746751959982,6.1306,163.13,163.06,6.1329]
[1746751960189,33.88,163.14,163.06,6.1329]
[1746751960384,33.88,163.14,163.04,36.4602]
[1746751960785,6.1314,163.11,163.05,6.133]
[1746751960990,33.88,163.14,163.05,6.133]
[1746751961178,33.88,163.14,163.04,42.6939]
[1746751961585,33.88,163.14,163.04,36.5602]
[1746751961780,6.132,163.09,163.04,42.6939]
[1746751961987,33.88,163.14,163.04,42.6939]
[1746751962183,33.88,163.14,163.04,36.5602]
[1746751962388,6.1311,163.11,163.05,6.1333]
[1746751962589,33.88,163.14,163.04,36.5602]
[1746751962788,6.1311,163.11,163.04,36.5602]
[1746751963384,6.1311,163.11,163.06,6.1329]
[1746751963592,33.88,163.14,163.04,36.5602]
[1746751963883,33.88,163.14,163.02,33.88]
[1746751963884,33.88,163.14,163.02,34.42]
[1746751964089,6.1322,163.09,163.02,34.42]
[1746751964391,6.1322,163.09,163.04,6.1336]
[1746751964783,6.1322,163.08,163.02,34.42]
[1746751964984,2.008,163.13,163.02,34.42]
[1746751965392,6.1317,163.1,163.05,6.1331]
[1746751965588,2.008,163.13,163.02,34.42]
[1746751965990,6.1314,163.11,163.06,6.1329]
[1746751966391,4.172,163.17,163.02,34.42]
[1746751966584,6.1305,163.13,163.02,34.42]
[1746751967090,68.2,163.16,163.02,34.42]
[1746751967290,2.0865,163.15,163.02,34.42]
[1746751967590,6.1314,163.11,163.06,6.1327]
[1746751967889,2.0865,163.15,163.06,6.1327]
[1746751968088,6.131,163.12,163.06,6.1327]
[1746751968290,2.0865,163.15,163.06,6.1327]
[1746751968689,6.1306,163.13,163.07,6.1324]
[1746751969092,2.0865,163.15,163.07,6.1324]
[1746751969494,2.0865,163.15,163.08,6.1321]
[1746751969992,2.0865,163.15,163.07,6.1325]
[1746751970796,6.131,163.12,163.07,6.1325]
[1746751970997,34.2,163.11,163.07,6.1325]
[1746751972093,34.2,163.11,163.03,1.9952]
[1746751973695,68.26,163.11,163.01,4.0945]
[1746751976103,34.2,163.11,163.01,4.0945]
[1746751977002,40.3315,163.11,163.01,4.0945]
[1746751977404,359.0865,163.15,163.03,9.74918714]
[1746751977605,6.131,163.12,163.06,6.1327]
[1746751977797,6.131,163.12,163.06,40.1527]
[1746751978199,6.1312,163.11,163.06,34.02]
[1746751978693,34.2,163.14,163.06,34.02]
[1746751979203,34.2,163.14,163.07,6.56580516]
[1746751979404,6.1319,163.09,163.07,6.56580516]
[1746751979998,34.2,163.14,163.08,6.56580516]
[1746751980200,34.2,163.14,163.09,6.56580516]
[1746751980602,6.1315,163.1,163.06,34.02]
[1746751980802,34.2,163.14,163.06,34.02]
[1746751981203,6.132,163.09,163.06,34.02]
[1746751981403,34.2,163.14,163.07,6.57181575]
[1746751981806,6.1322,163.08,163.07,6.57181575]
[1746751982005,1.9001,163.13,163.01,44.5292]
[1746751982205,2.0287,163.12,163.02,6.5729135]
[1746751982404,34.28,163.11,163.02,6.5729135]
[1746751982600,34.28,163.11,163.03,6.5729135]
[1746751983003,34.28,163.11,163.03,12.7070135]
[1746751983203,34.28,163.11,163.04,6.5729135]
[1746751983608,6.1332,163.06,163.05,6.5729135]
[1746751984910,6.1327,163.07,163.05,6.5729135]
[1746751985409,6.1327,163.07,163.06,6.5729135]
[1746751986215,6.1327,163.07,163.06,7.5729135]
[1746751989915,6.1327,163.07,163.06,1.0]
[1746751990916,6.1348,163.01,163.0,1.0]
[1746751991314,6.1348,163.01,163.0,7.57805047]
[1746751991712,6.1348,163.01,163.0,1.0]
[1746751992413,6.14,163.01,162.83,103.46737337]
[1746751992614,34.66,163.0,162.86,13.15734608]
[1746751992814,6.1389,162.91,162.86,13.15734608]
[1746751993021,34.22,162.99,162.86,5.9644]
[1746751993421,6.1391,162.9,162.86,5.9644]
[1746751994419,6.1386,162.91,162.86,12.1048]
[1746751995323,2.0282,162.98,162.86,40.5844]
[1746751995725,2.0282,162.98,162.86,3.9983]
[1746751995921,2.0282,162.98,162.82,34.22]
[1746751995922,9.74918714,162.97,162.82,34.22]
[1746751996118,9.74918714,162.97,162.83,34.6]
[1746751996318,2.0332,162.96,162.83,34.6]
[1746751996521,34.6,162.95,162.83,34.6]
[1746751996721,6.1397,162.89,162.84,6.1412]
[1746751996921,6.1397,162.89,162.83,34.6]
[1746751997324,6.1397,162.89,162.84,6.1409]
[1746751998018,34.22,162.94,162.82,34.22]
[1746751998625,34.22,162.94,162.82,40.3617]
[1746751999327,6.1409,162.85,162.82,34.22]
[1746751999527,6.1409,162.85,162.8,40.7827]
[1746751999831,6.1406,162.86,162.81,6.1423]
[1746752000324,6.1408,162.86,162.79,44.34918714]
[1746752001228,6.1408,162.86,162.81,6.1421]
[1746752001429,6.1412,162.85,162.79,44.34918714]
[1746752001627,34.66,162.89,162.79,44.34918714]
[1746752001828,34.66,162.89,162.82,6.1418]
[1746752002332,34.66,162.89,162.81,6.1423]
[1746752002631,34.66,162.89,162.79,44.34918714]
[1746752002827,36.7658,162.89,162.79,44.34918714]
[1746752003028,6.1405,162.86,162.8,6.1425]
[1746752003328,36.7658,162.89,162.79,9.74918714]
[1746752003525,36.7658,162.89,162.78,69.08]
[1746752003729,36.7658,162.89,162.78,34.66]
[1746752003730,2.0955,162.88,162.78,34.66]
[1746752004028,4.1235,162.88,162.76,85.37029918]
[1746752004225,4.1235,162.88,162.74,34.66]
[1746752004622,4.1235,162.88,162.75,6.1444]
[1746752004820,4.1235,162.88,162.74,34.66]
[1746752005221,4.1235,162.88,162.74,6.1447]
[1746752005427,4.1235,162.88,162.73,4.0497]
[1746752005627,1.09561479,162.87,162.73,4.0497]
[1746752005829,6.143,162.8,162.75,6.1446]
[1746752006230,6.143,162.8,162.73,4.0497]
[1746752006428,6.143,162.8,162.75,6.1446]
[1746752006623,6.143,162.8,162.73,4.0497]
[1746752007331,6.143,162.8,162.75,6.1446]
[1746752007527,34.66,162.81,162.73,4.0497]
[1746752007931,34.66,162.81,162.75,6.1446]
[1746752008132,34.66,162.81,162.72,11.66378714]
[1746752008436,34.66,162.81,162.7,34.66]
[1746752008630,6.1445,162.76,162.7,34.66]
[1746752008830,34.68,162.76,162.69,1.9406]
[1746752009030,6.1451,162.74,162.69,1.9406]
[1746752009230,6.1451,162.74,162.66,70.7571]
[1746752009432,34.68,162.76,162.66,70.7771]
[1746752009634,34.68,162.76,162.66,36.5971]
[1746752009829,34.68,162.76,162.66,70.7771]
[1746752010038,34.68,162.76,162.66,34.18]
[1746752010235,34.68,162.76,162.65,3.9057]
[1746752010436,34.68,162.76,162.62,68.84]
[1746752010634,34.68,162.76,162.64,2.0]
[1746752010839,6.1468,162.7,162.65,6.1483]
[1746752011137,6.1468,162.7,162.64,2.0]
[1746752011337,6.1468,162.7,162.64,8.1485]
[1746752011533,6.1471,162.69,162.64,8.1485]
[1746752012135,6.1466,162.7,162.64,8.1485]
[1746752012340,34.68,162.71,162.64,8.1485]
[1746752012738,6.1468,162.7,162.65,6.1484]
[1746752013037,34.68,162.71,162.65,6.1484]
[1746752013735,6.1466,162.7,162.65,6.1484]
[1746752014039,34.68,162.71,162.64,8.1487]
[1746752014240,6.1474,162.68,162.64,2.0]
[1746752014439,38.5922,162.71,162.64,2.0]
[1746752014641,40.5103,162.71,162.64,2.0]
[1746752014845,6.1484,162.65,162.64,2.0]
[1746752015041,34.68,162.66,162.56,44.42918714]
[1746752015249,34.68,162.66,162.59,6.1506]
[1746752015460,6.1493,162.63,162.59,6.1506]
[1746752015649,34.68,162.66,162.59,6.1506]
[1746752016051,6.1489,162.64,162.59,6.1506]
[1746752016248,34.68,162.66,162.6,6.1503]
[1746752016555,6.1487,162.65,162.56,78.50918714]
[1746752017254,6.1487,162.65,162.6,6.1503]
[1746752017953,34.68,162.66,162.6,6.1503]
[1746752018255,34.68,162.66,162.59,6.1506]
[1746752018454,6.1488,162.64,162.59,6.1506]
[1746752018754,34.68,162.66,162.56,44.42918714]
[1746752019241,34.68,162.66,162.56,34.68]
[1746752019447,34.68,162.66,162.55,3.9257]
[1746752019854,34.68,162.66,162.57,6.1512]
[1746752020650,6.1498,162.62,162.57,6.1512]
[1746752020955,34.68,162.66,162.57,6.1512]
[1746752021354,6.1498,162.62,162.57,6.1512]
[1746752022355,6.1499,162.61,162.56,6.1517]
[1746752022558,34.68,162.66,162.54,1.9582]